[Event "*** Titled Tuesday Blitz"]
[Site "Chess.com"]
[Date "2020.11.10"]
[Round "4"]
[White "JonahWillow"]
[Black "Das_Virus_2020"]
[Result "0-1"]
[WhiteElo "2613"]
[BlackElo "2426"]
[TimeControl "180+1"]
[EndTime "10:43:39 PST"]
[Termination "Das_Virus_2020 won by checkmate"]

1. e4 {[%clk 0:03:00.9]} 1... e6 {[%clk 0:02:49]} 2. d4 {[%clk 0:03:01.1]} 2...
d5 {[%clk 0:02:48.5]} 3. Nd2 {[%clk 0:03:02]} 3... Nf6 {[%clk 0:02:48.2]} 4. e5
{[%clk 0:03:02.1]} 4... Nfd7 {[%clk 0:02:48.1]} 5. c3 {[%clk 0:03:01.6]} 5... c5
{[%clk 0:02:48]} 6. f4 {[%clk 0:03:02.3]} 6... Nc6 {[%clk 0:02:46.7]} 7. Ndf3
{[%clk 0:03:01.6]} 7... Qb6 {[%clk 0:02:44.8]} 8. g3 {[%clk 0:02:58]} 8... a5
{[%clk 0:02:44]} 9. Ne2 {[%clk 0:02:48.3]} 9... a4 {[%clk 0:02:42.2]} 10. Bg2
{[%clk 0:02:45.3]} 10... Qa5 {[%clk 0:02:41]} 11. O-O {[%clk 0:02:44.8]} 11...
Nb6 {[%clk 0:02:32.8]} 12. Bd2 {[%clk 0:02:29.1]} 12... Qa7 {[%clk 0:02:26.5]}
13. b3 {[%clk 0:02:25.8]} 13... axb3 {[%clk 0:02:15.4]} 14. axb3 {[%clk
0:02:26.7]} 14... Qxa1 {[%clk 0:02:15.2]} 15. Qxa1 {[%clk 0:02:27.6]} 15... Rxa1
{[%clk 0:02:15.1]} 16. Rxa1 {[%clk 0:02:28.5]} 16... Be7 {[%clk 0:01:59.1]} 17.
Be3 {[%clk 0:02:17.4]} 17... c4 {[%clk 0:01:56.3]} 18. b4 {[%clk 0:02:15.5]}
18... O-O {[%clk 0:01:52.4]} 19. g4 {[%clk 0:02:02.4]} 19... Bd7 {[%clk
0:01:50.5]} 20. Ng3 {[%clk 0:01:44.6]} 20... Ra8 {[%clk 0:01:48.5]} 21. Rxa8+
{[%clk 0:01:44.4]} 21... Nxa8 {[%clk 0:01:49.4]} 22. f5 {[%clk 0:01:45.3]} 22...
Nc7 {[%clk 0:01:45.7]} 23. Bd2 {[%clk 0:01:36.4]} 23... Nb5 {[%clk 0:01:37.3]}
24. Bh3 {[%clk 0:01:23.6]} 24... Nca7 {[%clk 0:01:01.5]} 25. Ne2 {[%clk
0:01:19.1]} 25... Na3 {[%clk 0:00:54.1]} 26. Nf4 {[%clk 0:01:08]} 26... Nb1
{[%clk 0:00:49.6]} 27. Be1 {[%clk 0:00:26.2]} 27... Nb5 {[%clk 0:00:46.7]} 28.
g5 {[%clk 0:00:23.9]} 28... N1xc3 {[%clk 0:00:34.8]} 29. fxe6 {[%clk 0:00:23.2]}
29... fxe6 {[%clk 0:00:35.3]} 30. Bxe6+ {[%clk 0:00:07.5]} 30... Bxe6 {[%clk
0:00:34.7]} 31. Nxe6 {[%clk 0:00:08.4]} 31... Ne4 {[%clk 0:00:24.9]} 32. Nf4
{[%clk 0:00:05]} 32... c3 {[%clk 0:00:24.8]} 33. Nd3 {[%clk 0:00:02.4]} 33... c2
{[%clk 0:00:24.6]} 34. Nc1 {[%clk 0:00:01.9]} 34... h6 {[%clk 0:00:22.7]} 35. h4
{[%clk 0:00:02]} 35... hxg5 {[%clk 0:00:22]} 36. hxg5 {[%clk 0:00:02.9]} 36...
Kf7 {[%clk 0:00:22.3]} 37. Kf1 {[%clk 0:00:02.9]} 37... Kg6 {[%clk 0:00:20.6]}
38. Ke2 {[%clk 0:00:03.5]} 38... Bxg5 {[%clk 0:00:20.3]} 39. Nxg5 {[%clk
0:00:03.7]} 39... Kxg5 {[%clk 0:00:21.2]} 40. Kd3 {[%clk 0:00:04.6]} 40... Kf4
{[%clk 0:00:20.2]} 41. Kxc2 {[%clk 0:00:04.7]} 41... Nxd4+ {[%clk 0:00:19.9]}
42. Kd3 {[%clk 0:00:05.6]} 42... Kxe5 {[%clk 0:00:19.8]} 43. Ke3 {[%clk
0:00:05.6]} 43... Nf5+ {[%clk 0:00:19.6]} 44. Kf3 {[%clk 0:00:05.7]} 44... g5
{[%clk 0:00:18.9]} 45. Nd3+ {[%clk 0:00:05.9]} 45... Kd4 {[%clk 0:00:19.2]} 46.
Nc1 {[%clk 0:00:06.2]} 46... Kc4 {[%clk 0:00:18.9]} 47. Ne2 {[%clk 0:00:06.1]}
47... Nd4+ {[%clk 0:00:18.5]} 48. Nxd4 {[%clk 0:00:06.1]} 48... Kxd4 {[%clk
0:00:19.4]} 49. Kg4 {[%clk 0:00:07]} 49... Kc4 {[%clk 0:00:19]} 50. Kf3 {[%clk
0:00:07.1]} 50... Nc3 {[%clk 0:00:18.2]} 51. Kg4 {[%clk 0:00:06.9]} 51... Kxb4
{[%clk 0:00:18]} 52. Kxg5 {[%clk 0:00:07.8]} 52... Kc4 {[%clk 0:00:18.2]} 53.
Kf4 {[%clk 0:00:08.7]} 53... b5 {[%clk 0:00:18.4]} 54. Ke3 {[%clk 0:00:09.6]}
54... b4 {[%clk 0:00:17.8]} 55. Kd2 {[%clk 0:00:08.7]} 55... d4 {[%clk
0:00:17.7]} 56. Kc1 {[%clk 0:00:08.9]} 56... b3 {[%clk 0:00:17.3]} 57. Kb2
{[%clk 0:00:09.4]} 57... Na4+ {[%clk 0:00:16.9]} 58. Kc1 {[%clk 0:00:09.8]}
58... Kd3 {[%clk 0:00:16.9]} 59. Bb4 {[%clk 0:00:09.2]} 59... Ke2 {[%clk
0:00:14.4]} 60. Kb1 {[%clk 0:00:08.8]} 60... Kd1 {[%clk 0:00:12.6]} 61. Ba5
{[%clk 0:00:08]} 61... d3 {[%clk 0:00:12.7]} 62. Bb4 {[%clk 0:00:08.3]} 62... d2
{[%clk 0:00:12.9]} 63. Ba5 {[%clk 0:00:03.6]} 63... Ke2 {[%clk 0:00:12.8]} 64.
Bxd2 {[%clk 0:00:03.9]} 64... Kxd2 {[%clk 0:00:13]} 65. Ka1 {[%clk 0:00:04.8]}
65... Kc3 {[%clk 0:00:12.9]} 66. Kb1 {[%clk 0:00:05.3]} 66... Nc5 {[%clk
0:00:12.4]} 67. Kc1 {[%clk 0:00:05.2]} 67... Nd3+ {[%clk 0:00:12.2]} 68. Kb1
{[%clk 0:00:06.1]} 68... Nb4 {[%clk 0:00:12.2]} 69. Ka1 {[%clk 0:00:06.5]} 69...
Nc2+ {[%clk 0:00:10.6]} 70. Kb1 {[%clk 0:00:07]} 70... Na3+ {[%clk 0:00:10.7]}
71. Ka1 {[%clk 0:00:07.3]} 71... b2+ {[%clk 0:00:11.1]} 72. Ka2 {[%clk 0:00:08]}
72... b1=Q+ {[%clk 0:00:11.4]} 73. Kxa3 {[%clk 0:00:08.9]} 73... Qb3# {[%clk
0:00:11.4]} 0-1

[Event "*** Titled Tuesday Blitz"]
[Site "Chess.com"]
[Date "2020.11.10"]
[Round "4"]
[White "ajdemipopushi"]
[Black "TheKingDoctor"]
[Result "1-0"]
[WhiteElo "2400"]
[BlackElo "2137"]
[TimeControl "180+1"]
[EndTime "10:43:45 PST"]
[Termination "ajdemipopushi won by resignation"]

1. Nf3 {[%clk 0:03:00.9]} 1... Nf6 {[%clk 0:02:55.8]} 2. g3 {[%clk 0:03:01.1]}
2... g6 {[%clk 0:02:55.7]} 3. c4 {[%clk 0:03:00.8]} 3... Bg7 {[%clk 0:02:54.3]}
4. Bg2 {[%clk 0:03:01.4]} 4... O-O {[%clk 0:02:54.2]} 5. d4 {[%clk 0:03:01.7]}
5... d6 {[%clk 0:02:53.8]} 6. O-O {[%clk 0:03:01]} 6... c6 {[%clk 0:02:53.8]} 7.
Nc3 {[%clk 0:03:01.3]} 7... Bf5 {[%clk 0:02:53.8]} 8. b3 {[%clk 0:02:59.7]} 8...
Ne4 {[%clk 0:02:53.2]} 9. Bb2 {[%clk 0:02:59.9]} 9... Nxc3 {[%clk 0:02:49.8]}
10. Bxc3 {[%clk 0:02:59.8]} 10... Be4 {[%clk 0:02:50.3]} 11. e3 {[%clk
0:03:00.2]} 11... d5 {[%clk 0:02:49.6]} 12. Qe2 {[%clk 0:03:00.2]} 12... Nd7
{[%clk 0:02:41.7]} 13. Rfc1 {[%clk 0:02:59.4]} 13... Qb6 {[%clk 0:02:31.6]} 14.
Bf1 {[%clk 0:02:55.3]} 14... Rac8 {[%clk 0:02:20.3]} 15. Nd2 {[%clk 0:02:52]}
15... Bf5 {[%clk 0:02:14.6]} 16. a4 {[%clk 0:02:38.4]} 16... Nf6 {[%clk
0:02:04.6]} 17. c5 {[%clk 0:02:20.8]} 17... Qc7 {[%clk 0:02:03]} 18. b4 {[%clk
0:02:21.1]} 18... Ne4 {[%clk 0:02:01.7]} 19. Nxe4 {[%clk 0:02:20.1]} 19... Bxe4
{[%clk 0:02:02.6]} 20. b5 {[%clk 0:02:19.5]} 20... e5 {[%clk 0:01:59.7]} 21.
dxe5 {[%clk 0:01:56.7]} 21... Bxe5 {[%clk 0:01:55]} 22. b6 {[%clk 0:01:55.9]}
22... axb6 {[%clk 0:01:51.9]} 23. cxb6 {[%clk 0:01:54.4]} 23... Qe7 {[%clk
0:01:51.5]} 24. Bxe5 {[%clk 0:01:46.6]} 24... Qxe5 {[%clk 0:01:52.4]} 25. a5
{[%clk 0:01:47.1]} 25... c5 {[%clk 0:01:45.5]} 26. Qb5 {[%clk 0:01:02.2]} 26...
Qd6 {[%clk 0:01:32.1]} 27. a6 {[%clk 0:00:56.6]} 27... bxa6 {[%clk 0:01:33]} 28.
Rxa6 {[%clk 0:00:55.9]} 28... Qc6 {[%clk 0:01:26.3]} 29. b7 {[%clk 0:00:40.2]}
29... Qxb5 {[%clk 0:01:13.2]} 30. Bxb5 {[%clk 0:00:39.5]} 30... Rb8 {[%clk
0:01:10.4]} 31. Bc6 {[%clk 0:00:33]} 31... c4 {[%clk 0:01:10.3]} 32. Rc3 {[%clk
0:00:19.7]} 32... Rfd8 {[%clk 0:01:00.5]} 33. Rca3 {[%clk 0:00:17.6]} 33... Kg7
{[%clk 0:00:35.3]} 34. Ra8 {[%clk 0:00:17.1]} 34... c3 {[%clk 0:00:33.8]} 35.
Rxc3 {[%clk 0:00:07.9]} 35... d4 {[%clk 0:00:28.4]} 36. exd4 {[%clk 0:00:02.1]}
36... Bxc6 {[%clk 0:00:19.9]} 37. Rxc6 {[%clk 0:00:03]} 37... Rxa8 {[%clk
0:00:20.3]} 38. bxa8=Q {[%clk 0:00:03.5]} 38... Rxa8 {[%clk 0:00:21.2]} 39. Rc2
{[%clk 0:00:03.5]} 39... Rd8 {[%clk 0:00:20.7]} 40. Rd2 {[%clk 0:00:03.8]} 40...
Kf6 {[%clk 0:00:20.9]} 41. f3 {[%clk 0:00:04.7]} 41... Rd5 {[%clk 0:00:20.1]}
42. Kf2 {[%clk 0:00:05.1]} 42... h5 {[%clk 0:00:19.9]} 43. Ke3 {[%clk
0:00:05.7]} 43... Ke6 {[%clk 0:00:19.7]} 44. Ke4 {[%clk 0:00:06.1]} 44... Rd7
{[%clk 0:00:19]} 45. d5+ {[%clk 0:00:05.6]} 45... Kf6 {[%clk 0:00:18.5]} 46. Kd4
{[%clk 0:00:05.7]} 46... Kf5 {[%clk 0:00:18.4]} 47. Kc5 {[%clk 0:00:05.8]} 47...
Kf6 {[%clk 0:00:17.9]} 48. Kc6 {[%clk 0:00:05.8]} 48... Ke7 {[%clk 0:00:18.2]}
49. Re2+ {[%clk 0:00:05.5]} 49... Kd8 {[%clk 0:00:18.1]} 50. Ra2 {[%clk
0:00:03.9]} 50... Rc7+ {[%clk 0:00:18.3]} 51. Kd6 {[%clk 0:00:03.8]} 51... Rd7+
{[%clk 0:00:18.5]} 52. Ke5 {[%clk 0:00:04.2]} 52... Re7+ {[%clk 0:00:18.5]} 53.
Kd4 {[%clk 0:00:04.2]} 53... Rd7 {[%clk 0:00:18.4]} 54. Ra6 {[%clk 0:00:03.2]}
54... Ke7 {[%clk 0:00:18.2]} 55. Ke5 {[%clk 0:00:03.1]} 55... Rb7 {[%clk
0:00:15.9]} 56. d6+ {[%clk 0:00:03.4]} 56... Kd7 {[%clk 0:00:15.5]} 57. Kf6
{[%clk 0:00:03.8]} 57... Ke8 {[%clk 0:00:11.6]} 58. Ra8+ {[%clk 0:00:02.9]}
58... Kd7 {[%clk 0:00:11.6]} 59. Kxf7 {[%clk 0:00:03.5]} 59... Kxd6+ {[%clk
0:00:11.9]} 60. Kxg6 {[%clk 0:00:04]} 60... Rb2 {[%clk 0:00:12.3]} 61. Kxh5
{[%clk 0:00:03.6]} 61... Rxh2+ {[%clk 0:00:12.9]} 62. Kg4 {[%clk 0:00:04.1]}
62... Ke6 {[%clk 0:00:13.1]} 63. f4 {[%clk 0:00:04.7]} 63... Rg2 {[%clk
0:00:11.8]} 64. Ra6+ {[%clk 0:00:05.6]} 64... Kf7 {[%clk 0:00:11.8]} 65. f5
{[%clk 0:00:06]} 65... Rg1 {[%clk 0:00:11.4]} 66. Kf4 {[%clk 0:00:06.4]} 66...
Rf1+ {[%clk 0:00:10.9]} 67. Kg5 {[%clk 0:00:06.9]} 67... Rg1 {[%clk 0:00:10.7]}
68. g4 {[%clk 0:00:07.5]} 68... Rh1 {[%clk 0:00:08.1]} 69. Ra7+ {[%clk
0:00:08.1]} 69... Kf8 {[%clk 0:00:07.6]} 70. Kg6 {[%clk 0:00:08.6]} 70... Rg1
{[%clk 0:00:05.8]} 71. g5 {[%clk 0:00:09]} 71... Rg2 {[%clk 0:00:06.1]} 72. f6
{[%clk 0:00:06.6]} 1-0

[Event "*** Titled Tuesday Blitz"]
[Site "Chess.com"]
[Date "2020.11.10"]
[Round "4"]
[White "Dr_Thomas_Quilter"]
[Black "MarkoPe"]
[Result "1-0"]
[WhiteElo "2103"]
[BlackElo "2215"]
[TimeControl "180+1"]
[EndTime "10:43:51 PST"]
[Termination "Dr_Thomas_Quilter won by resignation"]

1. e4 {[%clk 0:03:00.9]} 1... c5 {[%clk 0:02:58.7]} 2. Nf3 {[%clk 0:03:00.1]}
2... d6 {[%clk 0:02:58.8]} 3. Bd3 {[%clk 0:02:58.5]} 3... Nf6 {[%clk 0:02:55.2]}
4. c3 {[%clk 0:02:58.2]} 4... g6 {[%clk 0:02:55.5]} 5. O-O {[%clk 0:02:58.2]}
5... Bg7 {[%clk 0:02:55.8]} 6. Bc2 {[%clk 0:02:58.6]} 6... Nbd7 {[%clk
0:02:53.3]} 7. d4 {[%clk 0:02:57.2]} 7... e5 {[%clk 0:02:53.3]} 8. Bg5 {[%clk
0:02:48.6]} 8... Qc7 {[%clk 0:02:53.2]} 9. Nbd2 {[%clk 0:02:43.5]} 9... O-O
{[%clk 0:02:53.2]} 10. Rc1 {[%clk 0:02:41.7]} 10... b5 {[%clk 0:02:52.2]} 11.
Qe2 {[%clk 0:02:05.8]} 11... a6 {[%clk 0:02:50.3]} 12. h3 {[%clk 0:02:04.8]}
12... Bb7 {[%clk 0:02:50]} 13. Qe3 {[%clk 0:02:04.7]} 13... Rfe8 {[%clk
0:02:49.1]} 14. Bh6 {[%clk 0:02:04.4]} 14... exd4 {[%clk 0:02:06.4]} 15. cxd4
{[%clk 0:02:00.1]} 15... Nxe4 {[%clk 0:01:46.6]} 16. Nxe4 {[%clk 0:01:52.8]}
16... f5 {[%clk 0:01:46]} 17. Qb3+ {[%clk 0:01:26.5]} 17... c4 {[%clk
0:01:44.9]} 18. Bxg7 {[%clk 0:01:07.4]} 18... Kxg7 {[%clk 0:01:30.2]} 19. Qc3
{[%clk 0:00:49.4]} 19... Bxe4 {[%clk 0:01:27.9]} 20. Bxe4 {[%clk 0:00:45.6]}
20... Rxe4 {[%clk 0:01:26.6]} 21. Ng5 {[%clk 0:00:45.1]} 21... Nf6 {[%clk
0:01:01.9]} 22. d5 {[%clk 0:00:41.9]} 22... Qe7 {[%clk 0:00:51.7]} 23. Rfe1
{[%clk 0:00:29.3]} 23... Re8 {[%clk 0:00:45.8]} 24. Ne6+ {[%clk 0:00:28]} 24...
Kg8 {[%clk 0:00:41.3]} 25. Rxe4 {[%clk 0:00:17.9]} 25... Nxe4 {[%clk 0:00:38.6]}
26. Qd4 {[%clk 0:00:17.1]} 26... Nc5 {[%clk 0:00:36.3]} 27. Re1 {[%clk
0:00:13.7]} 27... Nxe6 {[%clk 0:00:36.2]} 28. Rxe6 {[%clk 0:00:10.7]} 28... Qd7
{[%clk 0:00:32.6]} 29. Qf6 {[%clk 0:00:10.2]} 29... Rxe6 {[%clk 0:00:31.5]} 30.
dxe6 {[%clk 0:00:10.5]} 30... Qe8 {[%clk 0:00:31.1]} 31. e7 {[%clk 0:00:08.1]}
31... d5 {[%clk 0:00:24.6]} 32. Qe6+ {[%clk 0:00:06.1]} 32... Kg7 {[%clk
0:00:25.1]} 33. Qe5+ {[%clk 0:00:02.6]} 33... Kf7 {[%clk 0:00:24.9]} 34. Qxd5+
{[%clk 0:00:02.4]} 34... Kxe7 {[%clk 0:00:25.3]} 35. Qb7+ {[%clk 0:00:02.6]}
35... Qd7 {[%clk 0:00:23.1]} 36. Qxa6 {[%clk 0:00:02.8]} 36... Qd1+ {[%clk
0:00:22.8]} 37. Kh2 {[%clk 0:00:03.3]} 37... Qd6+ {[%clk 0:00:22.8]} 38. Qxd6+
{[%clk 0:00:03.5]} 38... Kxd6 {[%clk 0:00:23.7]} 39. Kg3 {[%clk 0:00:03.6]}
39... Kd5 {[%clk 0:00:23.5]} 40. Kf3 {[%clk 0:00:04.1]} 40... Kd4 {[%clk
0:00:23.3]} 41. Ke2 {[%clk 0:00:03]} 41... g5 {[%clk 0:00:21.4]} 42. Kd2 {[%clk
0:00:02.9]} 42... b4 {[%clk 0:00:20.6]} 43. a4 {[%clk 0:00:02.2]} 43... Kc5
{[%clk 0:00:13.2]} 44. Ke3 {[%clk 0:00:02.4]} 44... h6 {[%clk 0:00:11.8]} 45. g3
{[%clk 0:00:01.9]} 45... h5 {[%clk 0:00:11.7]} 46. h4 {[%clk 0:00:02.4]} 46...
gxh4 {[%clk 0:00:10.7]} 47. gxh4 {[%clk 0:00:02.4]} 47... b3 {[%clk 0:00:10]}
48. Kd2 {[%clk 0:00:02.2]} 48... f4 {[%clk 0:00:09.7]} 49. Kc3 {[%clk
0:00:01.6]} 49... f3 {[%clk 0:00:09.7]} 50. a5 {[%clk 0:00:02.1]} 50... Kb5
{[%clk 0:00:09.8]} 51. a6 {[%clk 0:00:02.6]} 51... Kxa6 {[%clk 0:00:08.2]} 52.
Kxc4 {[%clk 0:00:03.2]} 52... Kb6 {[%clk 0:00:07.5]} 53. Kxb3 {[%clk 0:00:03.9]}
53... Kc5 {[%clk 0:00:08.4]} 54. Kc3 {[%clk 0:00:04.6]} 54... Kb5 {[%clk
0:00:05.4]} 55. Kd3 {[%clk 0:00:04.5]} 55... Kb4 {[%clk 0:00:05.4]} 56. Ke3
{[%clk 0:00:05.2]} 56... Kb3 {[%clk 0:00:05.8]} 57. Kxf3 {[%clk 0:00:05.8]}
57... Kxb2 {[%clk 0:00:06.2]} 58. Kf4 {[%clk 0:00:06.5]} 58... Kc3 {[%clk
0:00:06.6]} 59. Kg5 {[%clk 0:00:07.3]} 59... Kd4 {[%clk 0:00:07]} 60. Kxh5
{[%clk 0:00:07.4]} 60... Ke4 {[%clk 0:00:05.4]} 61. Kg6 {[%clk 0:00:08]} 61...
Kf3 {[%clk 0:00:04.8]} 62. h5 {[%clk 0:00:08.5]} 62... Kxf2 {[%clk 0:00:05.1]}
63. h6 {[%clk 0:00:09.2]} 63... Ke3 {[%clk 0:00:05.2]} 64. h7 {[%clk 0:00:09.6]}
64... Ke4 {[%clk 0:00:04.8]} 65. h8=Q {[%clk 0:00:09.9]} 65... Kf4 {[%clk
0:00:05]} 66. Qf8+ {[%clk 0:00:09.9]} 66... Ke4 {[%clk 0:00:05.3]} 67. Qf6
{[%clk 0:00:09.2]} 67... Kd5 {[%clk 0:00:05.2]} 68. Kf5 {[%clk 0:00:08.3]} 68...
Kc4 {[%clk 0:00:05.3]} 69. Qd6 {[%clk 0:00:08.3]} 69... Kb5 {[%clk 0:00:04.9]}
70. Qc7 {[%clk 0:00:08]} 70... Kb4 {[%clk 0:00:05.1]} 71. Qc6 {[%clk 0:00:08.3]}
1-0

[Event "*** Titled Tuesday Blitz"]
[Site "Chess.com"]
[Date "2020.11.10"]
[Round "4"]
[White "wonderfultime"]
[Black "Zkid"]
[Result "0-1"]
[WhiteElo "2943"]
[BlackElo "2776"]
[TimeControl "180+1"]
[EndTime "10:44:20 PST"]
[Termination "Zkid won by resignation"]

1. d4 {[%clk 0:03:00.9]} 1... d5 {[%clk 0:02:59.4]} 2. Nf3 {[%clk 0:03:00.3]}
2... Nf6 {[%clk 0:02:56.3]} 3. Bf4 {[%clk 0:03:00.9]} 3... c5 {[%clk 0:02:55.3]}
4. c3 {[%clk 0:03:01.1]} 4... e6 {[%clk 0:02:55.2]} 5. e3 {[%clk 0:03:01.5]}
5... Bd6 {[%clk 0:02:55.4]} 6. Nbd2 {[%clk 0:03:02.1]} 6... Bxf4 {[%clk
0:02:52.7]} 7. exf4 {[%clk 0:03:02.1]} 7... Qb6 {[%clk 0:02:52.8]} 8. Qb3 {[%clk
0:02:50.4]} 8... Nc6 {[%clk 0:02:40.3]} 9. Bb5 {[%clk 0:02:44.5]} 9... O-O
{[%clk 0:02:38]} 10. Bxc6 {[%clk 0:02:36.1]} 10... bxc6 {[%clk 0:02:38.9]} 11.
O-O {[%clk 0:02:36.3]} 11... cxd4 {[%clk 0:02:25.5]} 12. cxd4 {[%clk 0:02:35.4]}
12... c5 {[%clk 0:02:24.9]} 13. dxc5 {[%clk 0:02:36.3]} 13... Qxc5 {[%clk
0:02:25]} 14. Rac1 {[%clk 0:02:36.4]} 14... Qb6 {[%clk 0:02:15]} 15. Rc2 {[%clk
0:02:14.1]} 15... Ba6 {[%clk 0:01:54]} 16. Rfc1 {[%clk 0:02:13.9]} 16... Rfc8
{[%clk 0:01:53.5]} 17. Rxc8+ {[%clk 0:01:09.6]} 17... Rxc8 {[%clk 0:01:53.1]}
18. Rxc8+ {[%clk 0:01:09.2]} 18... Bxc8 {[%clk 0:01:54]} 19. Qxb6 {[%clk
0:01:10]} 19... axb6 {[%clk 0:01:53.8]} 20. Ne5 {[%clk 0:01:10.9]} 20... Nd7
{[%clk 0:01:47.2]} 21. f3 {[%clk 0:01:01.1]} 21... Nc5 {[%clk 0:01:40.7]} 22. b4
{[%clk 0:00:45.6]} 22... Nb7 {[%clk 0:01:40.5]} 23. Kf2 {[%clk 0:00:45.3]} 23...
f6 {[%clk 0:01:40.1]} 24. Nd3 {[%clk 0:00:36.1]} 24... Bd7 {[%clk 0:01:37.5]}
25. Ke3 {[%clk 0:00:33.8]} 25... Kf7 {[%clk 0:01:35.7]} 26. Nb3 {[%clk
0:00:31.5]} 26... Ke7 {[%clk 0:01:33.9]} 27. g4 {[%clk 0:00:29.3]} 27... Kd6
{[%clk 0:01:29.5]} 28. g5 {[%clk 0:00:29.7]} 28... fxg5 {[%clk 0:01:25.8]} 29.
fxg5 {[%clk 0:00:30.6]} 29... e5 {[%clk 0:01:23.1]} 30. f4 {[%clk 0:00:31.2]}
30... d4+ {[%clk 0:01:23.3]} 31. Kd2 {[%clk 0:00:14.4]} 31... exf4 {[%clk
0:00:45.8]} 32. Nxf4 {[%clk 0:00:15.3]} 32... Ke5 {[%clk 0:00:45.1]} 33. Ne2
{[%clk 0:00:15.5]} 33... Nd6 {[%clk 0:00:44.8]} 34. Nexd4 {[%clk 0:00:14.5]}
34... Ne4+ {[%clk 0:00:44.7]} 35. Ke3 {[%clk 0:00:15.1]} 35... Nxg5 {[%clk
0:00:43.8]} 36. h4 {[%clk 0:00:13.3]} 36... Nf7 {[%clk 0:00:42.4]} 37. Nd2
{[%clk 0:00:11]} 37... Nd6 {[%clk 0:00:40.3]} 38. a3 {[%clk 0:00:11.5]} 38...
Kd5 {[%clk 0:00:36.8]} 39. Ne2 {[%clk 0:00:11.9]} 39... Nf5+ {[%clk 0:00:36.4]}
40. Kf4 {[%clk 0:00:10]} 40... Nxh4 {[%clk 0:00:36.6]} 41. Nc3+ {[%clk
0:00:09.3]} 41... Kd4 {[%clk 0:00:36]} 42. Nce4 {[%clk 0:00:09.2]} 42... Ng6+
{[%clk 0:00:34.7]} 43. Kg5 {[%clk 0:00:09.2]} 43... Ne5 {[%clk 0:00:33.3]} 44.
Nd6 {[%clk 0:00:06.3]} 44... h6+ {[%clk 0:00:32.5]} 45. Kh4 {[%clk 0:00:03.3]}
45... Kc3 {[%clk 0:00:28.8]} 46. N2e4+ {[%clk 0:00:03.8]} 46... Kb3 {[%clk
0:00:28]} 47. Ng3 {[%clk 0:00:02.1]} 47... Bg4 {[%clk 0:00:20.5]} 48. Nf1 {[%clk
0:00:01.4]} 48... g5+ {[%clk 0:00:19.8]} 49. Kg3 {[%clk 0:00:01.5]} 49... h5
{[%clk 0:00:20.7]} 50. Ne3 {[%clk 0:00:01.5]} 50... h4+ {[%clk 0:00:20.9]} 51.
Kf2 {[%clk 0:00:01.6]} 51... Be6 {[%clk 0:00:20.9]} 52. b5 {[%clk 0:00:01.8]}
52... g4 {[%clk 0:00:20.9]} 53. Ne4 {[%clk 0:00:01.6]} 53... g3+ {[%clk
0:00:21.1]} 54. Nxg3 {[%clk 0:00:02]} 54... hxg3+ {[%clk 0:00:20.9]} 55. Kxg3
{[%clk 0:00:02.9]} 55... Nc4 {[%clk 0:00:21.3]} 56. Ng2 {[%clk 0:00:02.8]} 56...
Nxa3 {[%clk 0:00:21.2]} 57. Kf4 {[%clk 0:00:03.4]} 57... Nxb5 {[%clk 0:00:20.5]}
58. Ke5 {[%clk 0:00:03.8]} 58... Bc4 {[%clk 0:00:20.7]} 59. Ne3 {[%clk
0:00:04.3]} 59... Kb4 {[%clk 0:00:21.2]} 60. Nf5 {[%clk 0:00:04.2]} 60... Kc5
{[%clk 0:00:21.2]} 61. Ne7 {[%clk 0:00:04.5]} 61... Nd4 {[%clk 0:00:20.5]} 62.
Ke4 {[%clk 0:00:03.6]} 62... Nc6 {[%clk 0:00:21.4]} 63. Ng6 {[%clk 0:00:02.7]}
63... b5 {[%clk 0:00:20.8]} 64. Ke3 {[%clk 0:00:03.2]} 64... b4 {[%clk 0:00:21]}
65. Nf4 {[%clk 0:00:03.8]} 65... b3 {[%clk 0:00:20.3]} 66. Kd2 {[%clk
0:00:03.7]} 66... Kb4 {[%clk 0:00:20.9]} 67. Ng2 {[%clk 0:00:03.3]} 67... Ka3
{[%clk 0:00:20.8]} 68. Ne3 {[%clk 0:00:03.5]} 68... Ne5 {[%clk 0:00:20.7]} 69.
Kc3 {[%clk 0:00:03.1]} 69... Bd3 {[%clk 0:00:18.3]} 70. Nd1 {[%clk 0:00:02.8]}
70... Bc2 {[%clk 0:00:17.5]} 71. Nb2 {[%clk 0:00:02.8]} 71... Ka2 {[%clk
0:00:17.7]} 72. Na4 {[%clk 0:00:02.9]} 72... Bg6 {[%clk 0:00:17.3]} 73. Kd2
{[%clk 0:00:02.5]} 73... b2 {[%clk 0:00:16.9]} 74. Nxb2 {[%clk 0:00:02.8]} 74...
Kxb2 {[%clk 0:00:17.8]} 75. Ke3 {[%clk 0:00:03.7]} 75... Nc6 {[%clk 0:00:18.4]}
76. Kd2 {[%clk 0:00:03.6]} 76... Kb3 {[%clk 0:00:18.5]} 77. Ke3 {[%clk
0:00:04.1]} 77... Kc4 {[%clk 0:00:18.9]} 78. Kf4 {[%clk 0:00:04.6]} 78... Kd4
{[%clk 0:00:19.2]} 79. Kg5 {[%clk 0:00:04.9]} 79... Be4 {[%clk 0:00:19.2]} 80.
Kf4 {[%clk 0:00:05.8]} 80... Nb4 {[%clk 0:00:19.2]} 81. Kg4 {[%clk 0:00:05.4]}
81... Nd5 {[%clk 0:00:19]} 82. Kg5 {[%clk 0:00:06]} 82... Ke5 {[%clk 0:00:18.5]}
83. Kh6 {[%clk 0:00:05.2]} 83... Kf6 {[%clk 0:00:17]} 84. Kh5 {[%clk 0:00:05.7]}
84... Kf5 {[%clk 0:00:17.5]} 85. Kh6 {[%clk 0:00:06]} 85... Nf4 {[%clk
0:00:17.1]} 86. Kg7 {[%clk 0:00:06.4]} 86... Ng6 {[%clk 0:00:16.8]} 87. Kg8
{[%clk 0:00:06.4]} 87... Kf6 {[%clk 0:00:15.8]} 88. Kh7 {[%clk 0:00:07]} 88...
Bd5 {[%clk 0:00:16.3]} 89. Kh6 {[%clk 0:00:07.1]} 89... Bg8 {[%clk 0:00:16.9]}
90. Kh5 {[%clk 0:00:08]} 90... Ne5 {[%clk 0:00:17.3]} 91. Kh4 {[%clk 0:00:08.5]}
91... Kf5 {[%clk 0:00:17.7]} 92. Kh5 {[%clk 0:00:08.7]} 92... Ng4 {[%clk
0:00:17.1]} 93. Kh4 {[%clk 0:00:08.6]} 93... Kf4 {[%clk 0:00:17.8]} 94. Kh3
{[%clk 0:00:08.6]} 94... Ne3 {[%clk 0:00:17.4]} 95. Kh2 {[%clk 0:00:07.4]} 95...
Kf3 {[%clk 0:00:16.3]} 96. Kg1 {[%clk 0:00:07.8]} 96... Kg3 {[%clk 0:00:16]} 0-1